bitfinex-derivatives/quotes_SOLF0:USTF0_20250606
["timestamp","ask_amount","ask_price","bid_price","bid_amount"]
[1749231733269,7.52944151,149.73,149.72,6.6735]
[1749231733570,4.84855466,149.73,149.72,6.6735]
[1749231733766,7.52970235,149.73,149.72,6.6735]
[1749231734172,7.52903057,149.73,149.72,6.6735]
[1749231734375,4.84855466,149.73,149.72,6.6735]
[1749231734575,2.68885522,149.73,149.72,6.6735]
[1749231734775,7.53681235,149.73,149.72,6.6735]
[1749231734975,7.53662073,149.73,149.72,6.6735]
[1749231735478,7.53556673,149.73,149.72,6.6735]
[1749231735871,33.94,149.75,149.73,6.6727]
[1749231736073,7.54994366,149.74,149.73,6.6727]
[1749231736272,40.6125,149.75,149.72,6.6732]
[1749231736468,2.68912955,149.74,149.72,6.6732]
[1749231736672,2.68912955,149.73,149.72,6.6732]
[1749231736881,7.55692246,149.73,149.72,6.6732]
[1749231737079,7.55692246,149.73,149.72,16.6732]
[1749231737478,7.55613595,149.73,149.72,16.6732]
[1749231738075,33.94,149.75,149.72,10.0]
[1749231738469,7.5614586,149.74,149.72,10.0]
[1749231738675,7.5614586,149.73,149.72,10.0]
[1749231738876,2.68832669,149.73,149.72,16.6735]
[1749231739074,36.063,149.78,149.72,10.0]
[1749231739378,2.68725633,149.77,149.76,6.6717]
[1749231739584,7.56038092,149.77,149.76,6.6717]
[1749231739780,4.87312459,149.77,149.76,6.6717]
[1749231740082,4.87330007,149.77,149.75,0.04793359]
[1749231740286,4.87308321,149.76,149.75,0.04793359]
[1749231740679,4.87308321,149.76,149.75,6.71993359]
[1749231741380,4.88686459,149.76,149.75,6.71993359]
[1749231741569,4.88721619,149.76,149.75,6.71993359]
[1749231741769,6.6711,149.78,149.75,6.71993359]
[1749231741971,4.8839625,149.77,149.75,6.71993359]
[1749231742173,4.88392023,149.76,149.75,6.71993359]
[1749231742372,6.6711,149.78,149.75,6.71993359]
[1749231742978,4.88463328,149.77,149.75,6.71993359]
[1749231743171,4.88463328,149.76,149.75,0.04793359]
[1749231743378,4.88598223,149.76,149.75,0.04793359]
[1749231743569,4.88598743,149.76,149.75,0.04793359]
[1749231743975,4.88600629,149.76,149.75,0.04793359]
[1749231744175,4.8860063,149.76,149.75,0.04793359]
[1749231745386,6.6714,149.77,149.75,0.04793359]
[1749231745574,4.88567265,149.76,149.75,0.04793359]
[1749231745779,11.56285234,149.76,149.75,0.04793359]
[1749231746078,18.85392772,149.76,149.75,0.04793359]
[1749231746277,18.85403202,149.76,149.75,0.04793359]
[1749231746474,6.6728,149.74,149.72,10.0]
[1749231746673,4.89054562,149.73,149.72,10.0]
[1749231746877,4.89054562,149.73,149.69,4.65014]
[1749231746878,38.79054562,149.73,149.69,4.65014]
[1749231747088,12.18285939,149.72,149.69,4.65014]
[1749231747389,4.89056573,149.71,149.69,11.32474]
[1749231747685,4.89057139,149.7,149.69,11.37072047]
[1749231747881,0.04875268,149.71,149.69,4.69612047]
[1749231748282,4.89053942,149.7,149.69,4.69612047]
[1749231748678,4.89054295,149.7,149.69,4.69612047]
[1749231748883,12.18351712,149.7,149.69,14.69612047]
[1749231749185,4.88935755,149.7,149.69,14.69612047]
[1749231749382,4.89040236,149.7,149.69,14.69612047]
[1749231749581,11.10965268,149.71,149.69,14.69612047]
[1749231749782,12.18269031,149.7,149.69,14.69612047]
[1749231749987,12.18269031,149.7,149.59,12.42940319]
[1749231749988,7.29227928,149.7,149.6,6.22541927]
[1749231750186,7.29227928,149.7,149.59,41.19227928]
[1749231750187,7.29227928,149.65,149.59,47.41769855]
[1749231750379,4.88830812,149.64,149.61,6.6781]
[1749231750579,7.29227928,149.65,149.61,6.6781]
[1749231751081,7.29227928,149.65,149.62,0.04987597]
[1749231751082,4.8959477,149.64,149.62,0.04987597]
[1749231751287,2.60806365,149.63,149.62,0.04987597]
[1749231751588,7.45600716,149.63,149.62,0.04987597]
[1749231751791,7.45540258,149.63,149.62,0.04987597]
[1749231751984,2.60661299,149.63,149.62,0.04987597]
[1749231752287,7.45430137,149.63,149.62,10.04987597]
[1749231752490,4.84770848,149.63,149.62,10.04987597]
[1749231752680,7.44418995,149.63,149.62,10.04987597]
[1749231752879,7.44419065,149.63,149.62,10.04987597]
[1749231753084,14.73647288,149.63,149.62,10.04987597]
[1749231753290,9.89885502,149.63,149.62,10.04987597]
[1749231753592,14.73624115,149.63,149.62,10.04987597]
[1749231754291,14.73584976,149.63,149.62,10.04987597]
[1749231754495,14.73587839,149.63,149.62,10.04987597]
[1749231754696,7.29227928,149.63,149.62,10.04987597]
[1749231754885,14.71337758,149.63,149.62,10.04987597]
[1749231755286,14.71334894,149.63,149.62,10.04987597]
[1749231755793,9.87621628,149.63,149.62,10.04987597]
[1749231755993,9.87465639,149.63,149.62,10.04987597]
[1749231756293,14.67412109,149.63,149.62,10.04987597]
[1749231756494,9.87465648,149.63,149.62,10.04987597]
[1749231756694,14.67406527,149.63,149.62,10.04987597]
[1749231756883,14.67276208,149.63,149.62,10.04987597]
[1749231757087,9.87418965,149.63,149.62,10.04987597]
[1749231757593,9.86955495,149.63,149.62,10.04987597]
[1749231757795,7.29227928,149.63,149.62,10.04987597]
[1749231757991,9.86955495,149.63,149.62,10.04987597]
[1749231758190,7.29227928,149.63,149.62,10.04987597]
[1749231758990,9.86955445,149.63,149.62,10.04987597]
[1749231759589,9.86847425,149.63,149.62,10.04987597]
[1749231759783,9.86849156,149.63,149.62,10.04987597]
[1749231759989,7.29227928,149.63,149.62,10.04987597]
[1749231760195,9.86018243,149.63,149.62,10.04987597]
[1749231760403,9.86003526,149.63,149.62,10.04987597]
[1749231760693,2.56775598,149.63,149.62,10.04987597]
[1749231761284,2.56551296,149.63,149.62,10.04987597]
[1749231761486,2.56565038,149.63,149.62,10.04987597]
[1749231761697,7.33935023,149.64,149.62,10.04987597]
[1749231761995,2.56558964,149.63,149.62,10.04987597]
[1749231762200,9.90258766,149.64,149.62,10.04987597]
[1749231762494,16.57988766,149.64,149.62,10.04987597]
[1749231763191,14.01665023,149.64,149.62,10.04987597]
[1749231763996,16.58034376,149.64,149.62,10.04987597]
[1749231764895,14.01665023,149.64,149.62,10.04987597]
[1749231765492,9.90560775,149.64,149.62,10.04987597]
[1749231765687,7.33935023,149.64,149.62,10.04987597]
[1749231765891,9.90554495,149.64,149.62,10.04987597]
[1749231766092,16.58294495,149.64,149.62,10.04987597]
[1749231766897,14.01675023,149.64,149.62,10.04987597]
[1749231767399,6.6776,149.63,149.62,10.04987597]
[1749231769899,14.01665023,149.64,149.62,10.04987597]
[1749231770303,6.6776,149.63,149.62,10.04987597]
[1749231770600,2.56393518,149.63,149.53,41.19227928]
[1749231770799,2.56393518,149.62,149.53,41.19227928]
[1749231771000,6.6789,149.6,149.53,41.19227928]
[1749231771200,6.6789,149.6,149.53,33.9]
[1749231771401,6.6789,149.6,149.56,6.6804]
[1749231771591,6.72448148,149.59,149.57,0.04302343]
[1749231771788,0.04508148,149.59,149.57,0.04302343]
[1749231772503,0.04508148,149.59,149.57,16.72312343]
[1749231774994,0.04508148,149.59,149.58,6.6798]
[1749231775195,0.04508148,149.59,149.57,10.04302343]
[1749231775992,0.04508148,149.59,149.58,6.6798]
[1749231779906,0.04508148,149.59,149.57,16.72312343]
[1749231781410,0.04508148,149.59,149.58,6.6798]
[1749231782417,0.04508148,149.59,149.57,16.72302343]
[1749231783110,0.04508148,149.59,149.58,6.6798]
[1749231784713,0.04508148,149.59,149.58,10.0]
[1749231785016,9.8934375,149.59,149.58,10.0]
[1749231785202,7.33736076,149.59,149.58,10.0]
[1749231785407,21.29535763,149.59,149.58,10.0]
[1749231785714,21.90823691,149.59,149.48,425.95227928]
[1749231786012,13.97427928,149.54,149.48,41.21227928]
[1749231786412,16.53007636,149.54,149.48,41.21227928]
[1749231786610,16.53007636,149.54,149.51,6.6829]
[1749231786611,7.29227928,149.54,149.51,6.6829]
[1749231786813,7.34367482,149.54,149.51,6.7303952]
[1749231787013,7.31872089,149.53,149.51,0.0474952]
[1749231787313,7.31872089,149.52,149.51,0.0474952]
[1749231787514,7.31872089,149.52,149.51,10.0474952]
[1749231787906,14.02567482,149.54,149.51,10.0474952]
[1749231788108,13.98476628,149.53,149.51,10.0474952]
[1749231788316,7.30203629,149.52,149.51,10.0474952]
[1749231788516,4.73743093,149.52,149.51,10.0474952]
[1749231788820,4.73742316,149.52,149.51,10.0474952]
[1749231789021,6.6823,149.53,149.51,10.0474952]
[1749231789411,4.73753529,149.52,149.51,10.0474952]
[1749231789913,14.02547482,149.54,149.51,16.7303952]
[1749231790112,11.41276816,149.53,149.51,10.0474952]
[1749231790309,7.34367482,149.54,149.51,10.0474952]
[1749231790511,4.73054011,149.53,149.51,10.0474952]
[1749231790719,4.73054011,149.52,149.51,10.0474952]
[1749231791122,4.73054011,149.52,149.51,16.7303952]
[1749231791422,4.73054011,149.53,149.51,10.0474952]
[1749231791614,0.05139554,149.54,149.53,6.6821]
[1749231791814,4.73733802,149.54,149.53,6.6821]
[1749231792017,4.73734169,149.54,149.53,6.6821]
[1749231792225,0.05139554,149.54,149.53,6.6821]
[1749231792716,4.72850389,149.54,149.53,6.6821]
[1749231792921,0.05139554,149.54,149.53,6.6821]
[1749231793518,0.05139554,149.54,149.51,10.0474952]
[1749231793815,4.72986008,149.54,149.51,10.0474952]
[1749231794016,0.05139554,149.54,149.52,6.6825]
[1749231794216,4.72986008,149.54,149.52,6.6825]
[1749231794922,4.72712532,149.54,149.52,6.6825]
[1749231795616,0.05139554,149.54,149.52,6.6825]
[1749231796822,4.74468508,149.54,149.52,6.6825]
[1749231797018,0.05139554,149.54,149.52,6.6825]
[1749231797725,4.74451011,149.54,149.52,6.6825]
[1749231797919,0.05139554,149.54,149.52,6.6817]
[1749231798117,4.74451011,149.54,149.52,6.6817]
[1749231798318,0.05139554,149.54,149.52,6.6817]
[1749231798522,4.74451011,149.54,149.52,6.6817]
[1749231798722,0.05139554,149.54,149.52,6.6822]
[1749231798925,0.05139554,149.54,149.51,10.0474952]
[1749231799323,7.34367482,149.54,149.51,16.7299952]
[1749231799622,7.34367482,149.54,149.51,10.0474952]
[1749231800024,7.34367482,149.54,149.52,6.6822]
[1749231801627,14.02507482,149.54,149.51,16.7300952]
[1749231802028,47.92507482,149.54,149.51,16.7300952]
[1749231802437,41.24367482,149.54,149.52,6.6821]
[1749231802935,33.95139554,149.54,149.53,6.6818]
[1749231803929,33.95139554,149.54,149.52,6.682]
[1749231804230,33.95139554,149.54,149.51,10.0474952]
[1749231804431,40.63289554,149.54,149.51,16.7297952]
[1749231805035,40.63289554,149.54,149.52,6.6822]
[1749231805634,33.95139554,149.54,149.52,6.6822]
[1749231806337,33.95139554,149.54,149.53,6.6818]
[1749231806741,33.95139554,149.54,149.51,10.0474952]
[1749231807042,33.95139554,149.54,149.52,6.6819]
[1749231809445,40.63279554,149.54,149.52,6.6819]
[1749231809844,33.95139554,149.54,149.52,6.6819]
[1749231810942,40.63289554,149.54,149.52,6.6819]
[1749231811147,33.95139554,149.54,149.52,6.6819]
[1749231811341,33.95139554,149.54,149.51,16.7300952]
[1749231811840,33.95139554,149.54,149.51,10.0474952]
[1749231812443,33.95139554,149.54,149.53,6.6818]
[1749231812750,0.05139554,149.54,149.53,6.6818]
[1749231819447,33.9,149.6,149.52,20.77390528]
[1749231819751,33.9,149.6,149.55,7.29227928]
[1749231820055,4.70297938,149.59,149.58,6.6793]
[1749231820454,33.94804989,149.6,149.58,6.6793]
[1749231820652,33.94804989,149.6,149.59,6.6791]
[1749231820843,38.65135458,149.6,149.59,6.6791]
[1749231821049,4.750776,149.6,149.59,6.6791]
[1749231821352,0.04804989,149.6,149.59,6.6791]
[1749231821553,4.75663233,149.6,149.59,6.6791]
[1749231821854,0.04804989,149.6,149.59,6.6791]
[1749231822449,0.04804989,149.6,149.58,6.6794]
[1749231822853,6.72704989,149.6,149.57,0.04901664]
[1749231823051,6.72704989,149.6,149.57,6.72881664]
[1749231823255,4.71160336,149.59,149.57,6.72881664]
[1749231823454,6.72704989,149.6,149.57,6.72881664]
[1749231823654,4.71104192,149.59,149.57,6.72881664]
[1749231823855,6.72704989,149.6,149.57,6.72881664]
[1749231824359,4.70946691,149.59,149.57,6.72881664]
[1749231824559,6.72704989,149.6,149.57,6.72881664]
[1749231824749,7.27573568,149.59,149.57,6.72881664]
[1749231824949,2.5669716,149.58,149.57,0.04901664]
[1749231825262,7.27666493,149.58,149.57,0.04901664]
[1749231825464,2.56733084,149.58,149.57,16.72881664]
[1749231825649,2.56841108,149.58,149.57,10.04901664]
[1749231825849,4.70898182,149.58,149.57,10.04901664]
[1749231826049,6.72674989,149.6,149.58,6.6796]
[1749231826254,7.27769002,149.59,149.58,6.6796]
[1749231826460,7.30419127,149.59,149.58,6.6796]
[1749231826661,2.56832078,149.59,149.58,6.6796]
[1749231826860,7.30423366,149.59,149.58,6.6796]
[1749231827060,7.30363859,149.59,149.58,6.6796]
[1749231827467,7.30372567,149.59,149.58,6.6796]
[1749231827762,7.30373592,149.59,149.57,16.72881664]
[1749231827962,4.74448342,149.58,149.57,16.72881664]
[1749231828150,4.74442555,149.58,149.57,16.72881664]
[1749231828351,21.28572222,149.58,149.57,10.04901664]
[1749231828561,21.28572222,149.58,149.57,7.32233256]
[1749231828562,16.54061443,149.58,149.57,7.32233256]
[1749231828861,21.28381829,149.58,149.57,7.32233256]
[1749231829050,16.54027719,149.58,149.57,7.32233256]
[1749231829261,21.29159898,149.58,149.57,7.32233256]
[1749231829451,18.72018097,149.58,149.57,7.32233256]
[1749231829664,21.29134772,149.58,149.57,7.32233256]
[1749231830163,6.68,149.57,149.56,0.05028303]
[1749231830359,13.99951405,149.57,149.56,0.05028303]
[1749231830662,4.74838984,149.57,149.48,46.84364672]
[1749231830852,13.97397928,149.54,149.51,6.6827]
[1749231831060,7.31905629,149.53,149.51,6.6827]
[1749231831255,7.31900755,149.52,149.51,6.6827]
[1749231831454,4.74758512,149.52,149.51,6.6827]
[1749231831659,2.57140907,149.52,149.51,6.6827]
[1749231831858,0.05132524,149.53,149.51,16.6827]
[1749231832062,2.57134798,149.52,149.51,16.6827]
[1749231832262,7.29733999,149.52,149.51,10.0]
[1749231832560,7.29641896,149.52,149.51,10.0]
[1749231832765,7.2983089,149.52,149.51,10.0]
[1749231832965,7.29878486,149.52,149.51,10.0]
[1749231833162,2.57221392,149.52,149.51,10.0]
[1749231833355,2.57226285,149.52,149.51,16.6824]
[1749231833559,0.05132524,149.53,149.51,16.6824]
[1749231835460,6.73322524,149.53,149.51,10.0]
[1749231835667,0.05132524,149.53,149.51,10.0]
[1749231836264,4.70741964,149.52,149.51,16.6824]
[1749231836465,4.7019577,149.52,149.51,16.6824]
[1749231836667,0.05132524,149.53,149.51,16.6824]
[1749231836864,0.05132524,149.53,149.51,10.0]
[1749231837057,4.70193034,149.52,149.51,10.0]
[1749231837257,4.70193024,149.52,149.51,10.0]
[1749231837456,0.05132524,149.53,149.51,10.0]
[1749231837964,0.05132524,149.53,149.51,16.6827]
[1749231838365,4.70067231,149.52,149.51,16.6827]
[1749231838567,0.05132524,149.53,149.51,10.0]
[1749231838765,4.69945662,149.52,149.51,10.0]
[1749231838966,6.73312524,149.53,149.51,10.0]
[1749231839260,4.69918232,149.52,149.51,10.0]
[1749231839663,6.6823,149.52,149.51,10.0]
[1749231839867,18.67356282,149.52,149.51,10.0]
[1749231840060,13.97457928,149.52,149.51,10.0]
[1749231840365,11.99071048,149.52,149.51,10.0]
[1749231840566,7.29227928,149.52,149.51,10.0]
[1749231840964,11.98555651,149.52,149.51,10.0]
[1749231841266,4.69344371,149.52,149.51,10.0]
[1749231841468,0.05132524,149.53,149.51,10.0]
[1749231841677,0.05132524,149.53,149.51,16.6827]
[1749231841868,4.69466155,149.52,149.51,10.0]
[1749231842371,18.66362094,149.52,149.51,10.0]
[1749231842570,18.66325388,149.52,149.51,10.0]
[1749231843069,13.97457928,149.52,149.51,10.0]
[1749231843273,18.66136607,149.52,149.51,10.0]
[1749231843467,13.97457928,149.52,149.51,10.0]
[1749231843668,18.66123196,149.52,149.51,10.0]
[1749231843973,18.66109827,149.52,149.51,10.0]
[1749231844168,6.6828,149.51,149.5,0.05118156]
[1749231844373,38.56661194,149.51,149.43,4.3272]
[1749231844672,7.29227928,149.48,149.43,4.3272]
[1749231844874,4.68488736,149.47,149.43,4.3272]
[1749231845069,7.29227928,149.48,149.43,4.3272]
[1749231845269,6.6848,149.47,149.44,6.6856]
[1749231845469,4.68450697,149.46,149.44,6.7340348]
[1749231845670,0.05078266,149.47,149.44,0.0484348]
[1749231845871,11.36968744,149.46,149.44,0.0484348]
[1749231846172,6.6852,149.46,149.44,0.0484348]
[1749231846372,6.6853,149.46,149.44,10.0484348]
[1749231846973,33.93078266,149.47,149.44,10.0484348]
[1749231847375,6.6852,149.46,149.44,10.0484348]
[1749231848268,6.6855,149.45,149.44,10.0484348]
[1749231850186,11.37652336,149.45,149.44,10.0484348]
[1749231850386,6.6855,149.45,149.44,10.0484348]
[1749231850882,11.37327246,149.45,149.44,10.0484348]
[1749231851089,6.6855,149.45,149.44,10.0484348]
[1749231851282,11.34122719,149.45,149.44,10.0484348]
[1749231851588,6.6855,149.45,149.44,10.0484348]
[1749231853977,11.22108288,149.45,149.44,10.0484348]
[1749231854178,6.6855,149.45,149.44,10.0484348]
[1749231854787,7.29227928,149.45,149.33,33.9]
[1749231855084,7.29227928,149.41,149.33,41.19227928]
[1749231855286,6.6879,149.4,149.33,41.19227928]
[1749231855686,0.04572961,149.38,149.36,6.6891]
[1749231856088,0.04572961,149.38,149.35,0.04989262]
[1749231856290,0.04572961,149.38,149.36,6.6895]
[1749231856892,0.04572961,149.38,149.36,16.6895]
[1749231857197,0.04572961,149.38,149.37,6.6891]
[1749231857789,0.04572961,149.38,149.36,16.6894]
[1749231859893,0.04572961,149.38,149.37,6.6891]
[1749231860094,0.04572961,149.38,149.36,10.0]
[1749231860290,0.04572961,149.38,149.36,16.6893]
[1749231860791,0.04572961,149.38,149.36,10.0]
[1749231861490,0.04572961,149.38,149.37,6.6891]
[1749231861991,0.04572961,149.38,149.36,10.0]
[1749231862192,0.04572961,149.38,149.36,16.6892]
[1749231862889,0.04572961,149.38,149.36,10.0]
[1749231864291,6.73472961,149.38,149.36,10.0]
[1749231865099,0.04572961,149.38,149.36,10.0]
[1749231865583,0.04572961,149.38,149.36,16.6893]
[1749231868592,6.73442961,149.38,149.36,10.0]
[1749231868789,0.04572961,149.38,149.36,10.0]
[1749231869185,0.04572961,149.38,149.36,16.6895]
[1749231872899,0.04572961,149.38,149.37,6.6891]
[1749231873902,33.9,149.41,149.37,9.40277928]
[1749231874197,47.87857928,149.44,149.39,7.29227928]
[1749231874391,40.5863,149.44,149.39,7.29227928]
[1749231874794,6.73294791,149.43,149.4,0.04226086]
[1749231875097,0.04634791,149.43,149.4,0.04226086]
[1749231875399,7.29227928,149.47,149.41,7.29227928]
[1749231875601,33.9,149.48,149.41,7.29227928]
[1749231875998,40.5846,149.48,149.45,6.6853]
[1749231876398,40.63486837,149.48,149.45,6.73631942]
[1749231876800,33.95026837,149.48,149.46,6.6849]
[1749231877906,33.95026837,149.48,149.47,6.6847]
[1749231878692,33.95026837,149.48,149.47,6.39044]
[1749231878997,33.95026837,149.48,149.46,6.685]
[1749231880601,7.29227928,149.47,149.45,0.05101942]
[1749231881398,13.97727928,149.47,149.45,0.05101942]
[1749231883102,6.6852,149.46,149.45,0.05101942]
[1749231883607,13.97747928,149.46,149.45,0.05101942]
[1749231887110,13.97747928,149.46,149.45,10.05101942]
[1749231887510,7.29227928,149.46,149.45,10.05101942]
[1749231889510,13.97737928,149.46,149.45,10.05101942]
[1749231898204,0.05026837,149.48,149.45,10.05101942]
[1749231898512,0.05026837,149.48,149.45,17.3432987]
[1749231898812,7.29227928,149.53,149.47,7.29227928]
[1749231899110,18.5822472,149.53,149.48,6.684]
[1749231899317,13.97447928,149.53,149.47,7.29227928]
[1749231899709,0.04221572,149.51,149.49,6.73311166]
[1749231899906,0.04221572,149.51,149.49,0.04941166]
[1749231901514,6.72501572,149.51,149.49,0.04941166]
[1749231902211,6.6829,149.5,149.49,10.04941166]
[1749231905021,14.017195,149.51,149.49,10.04941166]
[1749231905415,6.72491572,149.51,149.49,10.04941166]
[1749231906421,0.04221572,149.51,149.49,16.73251166]
[1749231906623,33.86,149.54,149.49,10.04941166]
[1749231906920,7.29227928,149.56,149.49,10.04941166]
[1749231906921,7.29227928,149.56,149.49,17.34169094]
[1749231907111,11.94394056,149.56,149.49,24.02509094]
[1749231907420,11.94402579,149.56,149.49,24.02509094]
[1749231907622,6.72934511,149.54,149.49,24.02509094]
[1749231907823,6.72934511,149.54,149.5,6.6831]
[1749231908919,6.6819,149.53,149.5,6.6831]
[1749231909513,6.72954511,149.54,149.5,6.6831]
[1749231909718,6.72954511,149.54,149.51,6.6827]
[1749231909918,0.04784511,149.54,149.49,17.34169094]
[1749231910123,0.04784511,149.54,149.5,2.2537]
[1749231910626,7.34012439,149.54,149.49,10.04941166]
[1749231911625,7.29227928,149.52,149.49,10.04941166]
[1749231911825,11.95819391,149.52,149.49,10.04941166]
[1749231912027,11.9581501,149.52,149.49,10.04941166]
[1749231912230,6.683,149.5,149.49,10.04941166]
[1749231912718,0.0427176,149.51,149.49,10.04941166]
[1749231913226,6.7255176,149.51,149.49,10.04941166]
[1749231914920,0.0427176,149.51,149.49,10.04941166]
[1749231915128,33.84,149.56,149.5,7.29227928]
[1749231915425,33.84,149.57,149.52,6.6822]
[1749231915620,4.67692692,149.56,149.5,7.29227928]
[1749231915817,33.84,149.57,149.5,7.29227928]
[1749231916019,0.04662838,149.55,149.5,7.29227928]
[1749231916221,0.04662838,149.55,149.52,0.04381926]
[1749231916819,6.72762838,149.55,149.52,0.04381926]
[1749231917224,0.04662838,149.55,149.52,0.04381926]
[1749231917621,11.38396634,149.55,149.52,0.04381926]
[1749231917823,6.72782838,149.55,149.52,0.04381926]
[1749231918027,11.38393865,149.55,149.52,0.04381926]
[1749231918234,6.6815,149.54,149.52,0.04381926]
[1749231919827,6.72772838,149.55,149.52,0.04381926]
[1749231920426,0.04662838,149.55,149.52,14.01779854]
[1749231920624,0.04662838,149.55,149.52,7.33609854]
[1749231920819,0.04662838,149.55,149.53,2.3119]
[1749231921031,33.84,149.6,149.54,7.29227928]
[1749231921336,4.67892598,149.59,149.54,7.29227928]
[1749231921525,6.6803,149.56,149.54,7.29227928]
[1749231921828,11.97073748,149.59,149.53,9.60417928]
[1749231922025,6.6809,149.55,149.53,2.3119]
[1749231922224,6.6809,149.55,149.53,2.35920615]
[1749231922434,4.7404993,149.57,149.53,2.35920615]
[1749231922435,0.04635125,149.57,149.53,2.35920615]
[1749231922622,6.6805,149.56,149.53,2.35920615]
[1749231923228,11.41976121,149.57,149.53,9.04080615]
[1749231923432,6.72635125,149.57,149.53,9.65148543]
[1749231923728,0.04635125,149.57,149.54,6.6809]
[1749231923929,0.04635125,149.57,149.53,9.65148543]
[1749231924427,0.04635125,149.57,149.54,6.6811]
[1749231924734,2.56331356,149.56,149.53,9.65148543]
[1749231924926,0.04635125,149.57,149.54,6.6813]
[1749231925127,0.04635125,149.57,149.53,9.65148543]
[1749231925831,0.04635125,149.57,149.56,6.6805]
[1749231926035,33.84,149.6,149.55,7.29227928]
[1749231926333,2.56456594,149.59,149.56,6.6803]
[1749231926633,2.56457407,149.58,149.56,6.6803]
[1749231926829,4.70865285,149.61,149.56,6.6803]
[1749231927028,6.6792,149.59,149.56,6.6803]
[1749231927231,2.56353458,149.58,149.57,6.7293474]
[1749231927431,9.24246567,149.6,149.57,6.7293474]
[1749231927637,2.56352348,149.59,149.57,6.7293474]
[1749231927830,6.6788,149.6,149.57,6.7293474]
[1749231928030,2.56295105,149.59,149.57,6.7293474]
[1749231928225,6.6788,149.6,149.57,6.7293474]
[1749231928431,2.56322377,149.59,149.57,6.7293474]
[1749231928736,6.679,149.59,149.57,0.0495474]
[1749231929630,6.6787,149.6,149.57,6.7293474]
[1749231929830,2.56144856,149.61,149.57,0.0495474]
[1749231930032,4.71284854,149.62,149.57,0.0495474]
[1749231930231,6.6778,149.62,149.59,6.6789]
[1749231930434,9.2405608,149.62,149.59,6.6789]
[1749231930738,6.6778,149.62,149.59,6.6789]
[1749231930934,9.24211317,149.62,149.59,6.6789]
[1749231931132,6.6778,149.62,149.58,6.6792]
[1749231931436,2.56451752,149.62,149.57,7.34182668]
[1749231931641,41.23227928,149.63,149.57,14.02122668]
[1749231931832,6.6783,149.61,149.57,14.02122668]
[1749231932039,2.5645536,149.62,149.57,7.34182668]
[1749231932333,6.6776,149.62,149.58,6.6792]
[1749231932536,6.6776,149.62,149.57,17.34182668]
[1749231932736,9.24199819,149.62,149.58,6.6792]
[1749231932936,9.24202129,149.62,149.57,17.34182668]
[1749231933136,6.6776,149.62,149.57,17.34182668]
[1749231933338,9.24199726,149.62,149.57,17.34182668]
[1749231933638,9.24192826,149.62,149.58,6.6791]
[1749231933838,9.24196649,149.62,149.57,17.34182668]
[1749231934040,9.24215817,149.62,149.57,17.34182668]
[1749231934242,9.24215817,149.62,149.58,6.6791]
[1749231934440,6.6782,149.61,149.58,6.6791]
[1749231935941,6.6785,149.6,149.57,24.02142668]
[1749231936239,6.6785,149.6,149.57,16.7291474]
[1749231936439,7.29227928,149.61,149.57,10.0495474]
[1749231936631,33.94,149.63,149.57,10.0495474]
[1749231936632,7.29227928,149.59,149.57,10.0495474]
[1749231937137,6.6794,149.58,149.57,10.0495474]
[1749231940835,9.2372946,149.58,149.57,10.0495474]
[1749231941141,13.9878479,149.58,149.57,10.0495474]
[1749231941343,13.9878479,149.58,149.57,10.00291902]
[1749231941944,9.23676168,149.58,149.57,10.00291902]
[1749231942238,13.95888533,149.58,149.57,10.00291902]
[1749231942438,11.40161739,149.58,149.57,10.00291902]
[1749231942648,13.9639347,149.58,149.57,10.00291902]
[1749231943752,9.24171731,149.58,149.57,10.00291902]
[1749231944040,13.9689093,149.58,149.57,10.00291902]
[1749231944341,9.24313945,149.58,149.57,10.00291902]
[1749231944549,6.6794,149.58,149.57,10.00291902]
[1749231944748,9.24373707,149.58,149.57,10.00291902]
[1749231944949,13.97126786,149.58,149.57,10.00291902]
[1749231945143,13.96305651,149.58,149.57,10.00291902]
[1749231945336,11.40709746,149.58,149.57,10.00291902]
[1749231945540,11.40709747,149.58,149.57,10.00291902]
[1749231945742,11.40702596,149.58,149.57,10.00291902]
[1749231945937,11.39637552,149.58,149.57,10.00291902]
[1749231946135,33.96754126,149.59,149.57,10.00291902]
[1749231946343,0.04754126,149.59,149.57,10.00291902]
[1749231946648,0.04754126,149.59,149.58,6.6794]
[1749231946842,4.72130452,149.61,149.58,7.29227928]
[1749231947042,33.94,149.62,149.58,7.29227928]
[1749231947242,6.6771,149.64,149.6,6.6782]
[1749231947441,4.71798459,149.63,149.6,6.6782]
[1749231947841,6.6771,149.64,149.6,6.72898038]
[1749231948047,4.71802608,149.63,149.6,6.72898038]
[1749231948647,11.38883331,149.63,149.6,6.72898038]
[1749231948843,6.6772,149.63,149.6,6.72898038]